[Event "Late-Titled-Tuesday-Blitz-April-23-2024"]
[Site "Chess.com"]
[Date "2024.04.23"]
[Round "4"]
[White "MaiqMaster"]
[Black "LikeWater"]
[Result "0-1"]
[WhiteElo "2452"]
[BlackElo "2665"]
[TimeControl "180+1"]
[EndTime "14:40:48 PDT"]
[Termination "LikeWater won by checkmate"]

1. d4 {[%clk 0:03:00.9]} 1... Nf6 {[%clk 0:02:59.1]} 2. c4 {[%clk 0:02:59.8]}
2... g6 {[%clk 0:02:59.2]} 3. g3 {[%clk 0:02:58.3]} 3... Bg7 {[%clk 0:02:58.9]}
4. Bg2 {[%clk 0:02:58.9]} 4... O-O {[%clk 0:02:59.8]} 5. Nc3 {[%clk 0:02:59.1]}
5... d6 {[%clk 0:02:58.9]} 6. Nf3 {[%clk 0:02:59.3]} 6... Nbd7 {[%clk
0:02:56.9]} 7. O-O {[%clk 0:02:59]} 7... e5 {[%clk 0:02:57.5]} 8. e4 {[%clk
0:02:57.1]} 8... c6 {[%clk 0:02:56.9]} 9. h3 {[%clk 0:02:56.7]} 9... Qa5 {[%clk
0:02:56.4]} 10. Re1 {[%clk 0:02:55.7]} 10... exd4 {[%clk 0:02:54.7]} 11. Nxd4
{[%clk 0:02:56.6]} 11... Ne5 {[%clk 0:02:54.7]} 12. Bf1 {[%clk 0:02:54.3]} 12...
Qb6 {[%clk 0:02:44.9]} 13. Nc2 {[%clk 0:02:46.7]} 13... Nh5 {[%clk 0:02:29.8]}
14. Be3 {[%clk 0:02:35.9]} 14... Qxb2 {[%clk 0:02:21.7]} 15. Na4 {[%clk
0:02:35.8]} 15... Nf3+ {[%clk 0:02:22.2]} 16. Kh1 {[%clk 0:02:27.3]} 16... Qf6
{[%clk 0:02:05.7]} 17. Re2 {[%clk 0:02:21]} 17... Ng5 {[%clk 0:01:53.7]} 18.
Bxg5 {[%clk 0:02:08.6]} 18... Qxg5 {[%clk 0:01:53.6]} 19. Rb1 {[%clk 0:02:06.6]}
19... Qa5 {[%clk 0:01:27.6]} 20. Ne3 {[%clk 0:01:58.2]} 20... f5 {[%clk
0:01:27.8]} 21. exf5 {[%clk 0:01:50]} 21... gxf5 {[%clk 0:01:28.7]} 22. Rd2
{[%clk 0:01:36.7]} 22... f4 {[%clk 0:01:25.8]} 23. Nd5 {[%clk 0:01:30]} 23...
Bf5 {[%clk 0:00:29.2]} 24. Nac3 {[%clk 0:01:21.4]} 24... Bxb1 {[%clk 0:00:22.1]}
25. Nxb1 {[%clk 0:01:10.1]} 25... fxg3 {[%clk 0:00:19.2]} 26. Qxh5 {[%clk
0:01:08.8]} 26... cxd5 {[%clk 0:00:19.4]} 27. Bd3 {[%clk 0:00:59.9]} 27... Rf6
{[%clk 0:00:19.4]} 28. Bxh7+ {[%clk 0:00:54.5]} 28... Kf8 {[%clk 0:00:19.4]} 29.
fxg3 {[%clk 0:00:47.2]} 29... Re8 {[%clk 0:00:15.9]} 30. Kg2 {[%clk 0:00:40.7]}
30... Re1 {[%clk 0:00:15.5]} 31. Qg4 {[%clk 0:00:33.1]} 31... Qb6 {[%clk
0:00:08.1]} 32. Qc8+ {[%clk 0:00:29.9]} 32... Ke7 {[%clk 0:00:08.7]} 33. c5
{[%clk 0:00:20.2]} 33... Qxc5 {[%clk 0:00:04.2]} 34. Qxb7+ {[%clk 0:00:20.6]}
34... Ke6 {[%clk 0:00:03.4]} 35. Bg8+ {[%clk 0:00:18.6]} 35... Kf5 {[%clk
0:00:02.2]} 36. Rf2+ {[%clk 0:00:13]} 36... Kg6 {[%clk 0:00:02.3]} 37. Bf7+
{[%clk 0:00:08.3]} 37... Kh6 {[%clk 0:00:01.9]} 38. Rxf6+ {[%clk 0:00:05]} 38...
Bxf6 {[%clk 0:00:02.8]} 39. Qb3 {[%clk 0:00:02.7]} 39... Qg1+ {[%clk 0:00:02.7]}
40. Kf3 {[%clk 0:00:03.2]} 40... Qf1+ {[%clk 0:00:03.2]} 41. Kg4 {[%clk
0:00:03.8]} 41... Re4# {[%clk 0:00:03.4]} 0-1

[Event "Late-Titled-Tuesday-Blitz-April-23-2024"]
[Site "Chess.com"]
[Date "2024.04.23"]
[Round "4"]
[White "MeisterJabo"]
[Black "rhwr"]
[Result "0-1"]
[WhiteElo "2490"]
[BlackElo "2310"]
[TimeControl "180+1"]
[EndTime "14:40:50 PDT"]
[Termination "rhwr won on time"]

1. c4 {[%clk 0:03:00.9]} 1... e5 {[%clk 0:02:58.5]} 2. g3 {[%clk 0:02:59.2]}
2... Nc6 {[%clk 0:02:58.9]} 3. Bg2 {[%clk 0:02:57.1]} 3... Nf6 {[%clk
0:02:59.5]} 4. Nc3 {[%clk 0:02:55.3]} 4... g6 {[%clk 0:02:59]} 5. Rb1 {[%clk
0:02:52]} 5... a5 {[%clk 0:02:56.2]} 6. a3 {[%clk 0:02:51.1]} 6... Qe7 {[%clk
0:02:29.7]} 7. e3 {[%clk 0:02:49.6]} 7... Bg7 {[%clk 0:02:27.6]} 8. Nge2 {[%clk
0:02:49.1]} 8... O-O {[%clk 0:02:27.1]} 9. O-O {[%clk 0:02:50]} 9... e4 {[%clk
0:02:11.3]} 10. d3 {[%clk 0:02:43.9]} 10... exd3 {[%clk 0:02:09.5]} 11. Qxd3
{[%clk 0:02:44.8]} 11... Ne5 {[%clk 0:02:09.4]} 12. Qc2 {[%clk 0:02:05]} 12...
c6 {[%clk 0:02:00]} 13. b3 {[%clk 0:02:00.4]} 13... d6 {[%clk 0:01:57.5]} 14.
Bb2 {[%clk 0:01:47.6]} 14... Bf5 {[%clk 0:01:45.6]} 15. e4 {[%clk 0:01:46.7]}
15... Be6 {[%clk 0:01:42]} 16. Nd4 {[%clk 0:01:43]} 16... Bd7 {[%clk 0:01:31.4]}
17. Rbd1 {[%clk 0:01:41.9]} 17... Rfd8 {[%clk 0:01:28.1]} 18. h3 {[%clk
0:01:38.7]} 18... g5 {[%clk 0:01:20.9]} 19. Rd2 {[%clk 0:01:34.4]} 19... g4
{[%clk 0:01:17.7]} 20. hxg4 {[%clk 0:01:16.9]} 20... Nfxg4 {[%clk 0:01:17.6]}
21. f4 {[%clk 0:00:24.8]} 21... Ne3 {[%clk 0:01:15.7]} 22. Qc1 {[%clk
0:00:25.1]} 22... Nxf1 {[%clk 0:01:15.7]} 23. Qxf1 {[%clk 0:00:25.9]} 23... Ng4
{[%clk 0:01:14.9]} 24. Qf3 {[%clk 0:00:23.7]} 24... Qf6 {[%clk 0:01:04.2]} 25.
Bh3 {[%clk 0:00:22.5]} 25... Qg6 {[%clk 0:01:00.5]} 26. f5 {[%clk 0:00:19.8]}
26... Ne5 {[%clk 0:00:57.9]} 27. fxg6 {[%clk 0:00:18.8]} 27... Nxf3+ {[%clk
0:00:57.8]} 28. Nxf3 {[%clk 0:00:19.2]} 28... Bxh3 {[%clk 0:00:53.1]} 29. gxf7+
{[%clk 0:00:11.1]} 29... Kf8 {[%clk 0:00:53.1]} 30. Ng5 {[%clk 0:00:10.6]} 30...
Bg4 {[%clk 0:00:44.5]} 31. Rf2 {[%clk 0:00:04.2]} 31... Bd4 {[%clk 0:00:43.4]}
32. Nxh7+ {[%clk 0:00:02.5]} 32... Kg7 {[%clk 0:00:43.4]} 33. f8=Q+ {[%clk
0:00:02.6]} 33... Rxf8 {[%clk 0:00:43.4]} 34. Nxf8 {[%clk 0:00:03.5]} 34... Rxf8
{[%clk 0:00:42.9]} 35. Nd1 {[%clk 0:00:04.4]} 35... Bxb2 {[%clk 0:00:35.6]} 36.
Nxb2 {[%clk 0:00:05.1]} 36... Rxf2 {[%clk 0:00:34.4]} 37. Kxf2 {[%clk
0:00:05.1]} 37... Kf6 {[%clk 0:00:35.1]} 38. Ke3 {[%clk 0:00:05.4]} 38... Ke6
{[%clk 0:00:30.9]} 39. Kf4 {[%clk 0:00:04.9]} 39... Be2 {[%clk 0:00:29.7]} 40.
b4 {[%clk 0:00:03.9]} 40... axb4 {[%clk 0:00:29.5]} 41. axb4 {[%clk 0:00:04.8]}
41... d5 {[%clk 0:00:27.7]} 42. exd5+ {[%clk 0:00:03.9]} 42... cxd5 {[%clk
0:00:27.2]} 43. c5 {[%clk 0:00:04.6]} 43... Kf6 {[%clk 0:00:19.6]} 44. Ke3
{[%clk 0:00:04.8]} 44... Bb5 {[%clk 0:00:18.9]} 45. Kd4 {[%clk 0:00:04.9]} 45...
Ke6 {[%clk 0:00:18.9]} 46. Nd3 {[%clk 0:00:04.8]} 46... Bc6 {[%clk 0:00:16.8]}
47. Nf4+ {[%clk 0:00:03.4]} 47... Kf5 {[%clk 0:00:16.9]} 48. Nxd5 {[%clk
0:00:03.9]} 48... Kg4 {[%clk 0:00:17.1]} 0-1

[Event "Late-Titled-Tuesday-Blitz-April-23-2024"]
[Site "Chess.com"]
[Date "2024.04.23"]
[Round "4"]
[White "mishanick"]
[Black "Fandorine"]
[Result "1/2-1/2"]
[WhiteElo "3155"]
[BlackElo "2935"]
[TimeControl "180+1"]
[EndTime "14:40:52 PDT"]
[Termination "Game drawn by repetition"]

1. d4 {[%clk 0:03:00]} 1... d5 {[%clk 0:02:53.5]} 2. c4 {[%clk 0:03:00.1]} 2...
e6 {[%clk 0:02:53.8]} 3. Nc3 {[%clk 0:03:00.4]} 3... Nf6 {[%clk 0:02:54]} 4. Bg5
{[%clk 0:02:59.5]} 4... Be7 {[%clk 0:02:53.1]} 5. e3 {[%clk 0:02:59.7]} 5... O-O
{[%clk 0:02:52.6]} 6. Qc2 {[%clk 0:02:56.9]} 6... Ne4 {[%clk 0:02:35.4]} 7. Bxe7
{[%clk 0:02:48.6]} 7... Qxe7 {[%clk 0:02:34.2]} 8. cxd5 {[%clk 0:02:41.3]} 8...
Nxc3 {[%clk 0:02:33.1]} 9. bxc3 {[%clk 0:02:42.2]} 9... exd5 {[%clk 0:02:33.4]}
10. Bd3 {[%clk 0:02:43]} 10... h6 {[%clk 0:02:32.5]} 11. Ne2 {[%clk 0:02:43.7]}
11... Nd7 {[%clk 0:02:27.5]} 12. O-O {[%clk 0:02:39.1]} 12... Nf6 {[%clk
0:02:22.8]} 13. c4 {[%clk 0:02:38.7]} 13... dxc4 {[%clk 0:01:55.6]} 14. Qxc4
{[%clk 0:02:37.8]} 14... Rd8 {[%clk 0:01:53.6]} 15. Rfc1 {[%clk 0:02:36.5]}
15... c6 {[%clk 0:01:50.8]} 16. a4 {[%clk 0:02:35.3]} 16... Be6 {[%clk
0:01:48.2]} 17. Qc2 {[%clk 0:02:35.5]} 17... Nd5 {[%clk 0:01:47]} 18. Qb2 {[%clk
0:02:30.9]} 18... Nb4 {[%clk 0:01:45.5]} 19. Be4 {[%clk 0:02:31.2]} 19... a5
{[%clk 0:01:44.7]} 20. Nf4 {[%clk 0:02:28.4]} 20... Rac8 {[%clk 0:01:42.1]} 21.
Rc5 {[%clk 0:02:19]} 21... Bd5 {[%clk 0:01:18.7]} 22. Bxd5 {[%clk 0:01:54.7]}
22... cxd5 {[%clk 0:01:18.7]} 23. Rxa5 {[%clk 0:01:32.3]} 23... Rc2 {[%clk
0:01:17.5]} 24. Qb3 {[%clk 0:01:32.9]} 24... Qc7 {[%clk 0:01:14.1]} 25. Rc5
{[%clk 0:01:15.4]} 25... Rxc5 {[%clk 0:01:13.6]} 26. dxc5 {[%clk 0:01:16]} 26...
Qxc5 {[%clk 0:01:14.5]} 27. Ne2 {[%clk 0:01:13.9]} 27... Qc4 {[%clk 0:01:06.9]}
28. Qb2 {[%clk 0:01:09.1]} 28... Nc6 {[%clk 0:00:59.3]} 29. h3 {[%clk 0:01:04]}
29... d4 {[%clk 0:00:54]} 30. exd4 {[%clk 0:01:00.2]} 30... Nxd4 {[%clk
0:00:53.2]} 31. Ng3 {[%clk 0:01:00.9]} 31... Qd5 {[%clk 0:00:43.9]} 32. Re1
{[%clk 0:00:55.3]} 32... Qb3 {[%clk 0:00:30.3]} 33. Qa1 {[%clk 0:00:19]} 33...
Nc2 {[%clk 0:00:20.5]} 34. Qb1 {[%clk 0:00:19.5]} 34... Qxa4 {[%clk 0:00:19.1]}
35. Re7 {[%clk 0:00:16.1]} 35... Qb4 {[%clk 0:00:07.6]} 36. Qxb4 {[%clk
0:00:11]} 36... Nxb4 {[%clk 0:00:08.5]} 37. Rxb7 {[%clk 0:00:11.3]} 37... Nd5
{[%clk 0:00:08.6]} 38. Nf5 {[%clk 0:00:11.9]} 38... Nf6 {[%clk 0:00:08.4]} 39.
g4 {[%clk 0:00:12.4]} 39... Kf8 {[%clk 0:00:06.9]} 40. Rb6 {[%clk 0:00:12.5]}
40... Ng8 {[%clk 0:00:05.4]} 41. Kg2 {[%clk 0:00:12.6]} 41... Ne7 {[%clk
0:00:05.7]} 42. Ne3 {[%clk 0:00:11.4]} 42... Nd5 {[%clk 0:00:05.9]} 43. Nxd5
{[%clk 0:00:11.5]} 43... Rxd5 {[%clk 0:00:06.8]} 44. Ra6 {[%clk 0:00:10.4]}
44... Kg8 {[%clk 0:00:06.3]} 45. Rb6 {[%clk 0:00:10.8]} 45... Kh7 {[%clk
0:00:06.5]} 46. Ra6 {[%clk 0:00:11.4]} 46... g5 {[%clk 0:00:06.1]} 47. Ra7
{[%clk 0:00:11.9]} 47... Kg7 {[%clk 0:00:06.6]} 48. Ra6 {[%clk 0:00:12.6]} 48...
Re5 {[%clk 0:00:06.5]} 49. Ra7 {[%clk 0:00:13.3]} 49... Rd5 {[%clk 0:00:07]} 50.
Ra6 {[%clk 0:00:13.9]} 50... Re5 {[%clk 0:00:07.6]} 51. Ra7 {[%clk 0:00:14.7]}
51... Rd5 {[%clk 0:00:08.2]} 1/2-1/2

[Event "Late-Titled-Tuesday-Blitz-April-23-2024"]
[Site "Chess.com"]
[Date "2024.04.23"]
[Round "4"]
[White "TigrVShlyape"]
[Black "MarcoRiehle"]
[Result "1/2-1/2"]
[WhiteElo "3018"]
[BlackElo "2800"]
[TimeControl "180+1"]
[EndTime "14:40:56 PDT"]
[Termination "Game drawn by repetition"]

1. e4 {[%clk 0:03:00.9]} 1... e5 {[%clk 0:02:55.5]} 2. Nf3 {[%clk 0:03:00.5]}
2... Nf6 {[%clk 0:02:55.9]} 3. Nxe5 {[%clk 0:02:58.5]} 3... Nxe4 {[%clk
0:02:55.9]} 4. Qe2 {[%clk 0:02:57]} 4... Qe7 {[%clk 0:02:56.1]} 5. Qxe4 {[%clk
0:02:56.7]} 5... d6 {[%clk 0:02:56.5]} 6. d4 {[%clk 0:02:56.5]} 6... dxe5 {[%clk
0:02:56.7]} 7. dxe5 {[%clk 0:02:54]} 7... Nc6 {[%clk 0:02:57]} 8. Nc3 {[%clk
0:02:45.3]} 8... Qxe5 {[%clk 0:02:57.1]} 9. Qxe5+ {[%clk 0:02:40.3]} 9... Nxe5
{[%clk 0:02:58]} 10. Nb5 {[%clk 0:02:39.3]} 10... Bb4+ {[%clk 0:02:57.5]} 11. c3
{[%clk 0:02:37.8]} 11... Ba5 {[%clk 0:02:57.6]} 12. Bf4 {[%clk 0:02:35.8]} 12...
f6 {[%clk 0:02:57.9]} 13. Bxe5 {[%clk 0:02:34]} 13... fxe5 {[%clk 0:02:58.2]}
14. Na3 {[%clk 0:02:33.7]} 14... c6 {[%clk 0:02:50.3]} 15. Nc4 {[%clk
0:02:31.3]} 15... Bc7 {[%clk 0:02:50.6]} 16. Bd3 {[%clk 0:02:30.8]} 16... Be6
{[%clk 0:02:45.9]} 17. Ne3 {[%clk 0:02:26.5]} 17... Rd8 {[%clk 0:02:37.6]} 18.
Ke2 {[%clk 0:02:25.2]} 18... Ke7 {[%clk 0:02:28.7]} 19. Bc4 {[%clk 0:02:15.8]}
19... Bb6 {[%clk 0:02:26.9]} 20. Bxe6 {[%clk 0:02:12.8]} 20... Bxe3 {[%clk
0:02:27.1]} 21. Kxe3 {[%clk 0:02:11.1]} 21... Kxe6 {[%clk 0:02:27.1]} 22. Rhd1
{[%clk 0:02:11.4]} 22... b5 {[%clk 0:02:25.6]} 23. Rxd8 {[%clk 0:02:07.8]} 23...
Rxd8 {[%clk 0:02:26.5]} 24. a4 {[%clk 0:02:07.7]} 24... b4 {[%clk 0:01:32.4]}
25. Rc1 {[%clk 0:01:49.6]} 25... b3 {[%clk 0:01:25.8]} 26. a5 {[%clk 0:01:42.3]}
26... Rd5 {[%clk 0:01:08.2]} 27. Ra1 {[%clk 0:01:41.7]} 27... c5 {[%clk
0:01:05.9]} 28. Ra3 {[%clk 0:01:37.9]} 28... c4 {[%clk 0:01:05.7]} 29. Ra4
{[%clk 0:01:38.1]} 29... Rc5 {[%clk 0:00:56]} 30. Ke4 {[%clk 0:01:36.7]} 30...
Kd6 {[%clk 0:00:53.8]} 31. a6 {[%clk 0:01:20.9]} 31... g6 {[%clk 0:00:29.5]} 32.
h4 {[%clk 0:01:16.3]} 32... Rd5 {[%clk 0:00:25.5]} 33. Rxc4 {[%clk 0:01:14.5]}
33... Rd2 {[%clk 0:00:25.6]} 34. Ke3 {[%clk 0:01:07.8]} 34... Rxb2 {[%clk
0:00:23.3]} 35. Rb4 {[%clk 0:01:08.4]} 35... Ra2 {[%clk 0:00:10.3]} 36. Rxb3
{[%clk 0:01:07.1]} 36... Rxa6 {[%clk 0:00:10.8]} 37. Rb7 {[%clk 0:01:05.4]}
37... h5 {[%clk 0:00:11]} 38. g3 {[%clk 0:00:51]} 38... Ke6 {[%clk 0:00:11]} 39.
c4 {[%clk 0:00:48.8]} 39... Ra3+ {[%clk 0:00:07.8]} 40. Ke4 {[%clk 0:00:48.5]}
40... Ra2 {[%clk 0:00:08.4]} 41. f3 {[%clk 0:00:40.7]} 41... Re2+ {[%clk
0:00:05.9]} 42. Kd3 {[%clk 0:00:40.5]} 42... Rf2 {[%clk 0:00:06.8]} 43. Ke3
{[%clk 0:00:37.5]} 43... Rc2 {[%clk 0:00:07.3]} 44. Rxa7 {[%clk 0:00:26.6]}
44... Rxc4 {[%clk 0:00:06.9]} 45. Ra6+ {[%clk 0:00:25.9]} 45... Kf7 {[%clk
0:00:05.9]} 46. Rd6 {[%clk 0:00:24.5]} 46... Rb4 {[%clk 0:00:05.5]} 47. Rc6
{[%clk 0:00:23.6]} 47... Ra4 {[%clk 0:00:05.9]} 48. Rb6 {[%clk 0:00:22.2]} 48...
Rc4 {[%clk 0:00:06.3]} 49. Kd3 {[%clk 0:00:18.6]} 49... Ra4 {[%clk 0:00:06.2]}
50. Ke3 {[%clk 0:00:18.9]} 50... Rc4 {[%clk 0:00:06.1]} 51. Kd3 {[%clk
0:00:19.2]} 51... Ra4 {[%clk 0:00:06.4]} 52. Ke3 {[%clk 0:00:19.6]} 1/2-1/2

[Event "Late-Titled-Tuesday-Blitz-April-23-2024"]
[Site "Chess.com"]
[Date "2024.04.23"]
[Round "4"]
[White "vladoboch"]
[Black "Viktoker"]
[Result "1-0"]
[WhiteElo "2514"]
[BlackElo "2341"]
[TimeControl "180+1"]
[EndTime "14:40:58 PDT"]
[Termination "vladoboch won by resignation"]

1. h4 {[%clk 0:03:00.9]} 1... e5 {[%clk 0:02:59.1]} 2. h5 {[%clk 0:02:59.9]}
2... Nc6 {[%clk 0:02:58.8]} 3. e4 {[%clk 0:02:59.7]} 3... Bc5 {[%clk 0:02:57.8]}
4. Nc3 {[%clk 0:02:57.3]} 4... d6 {[%clk 0:02:57.5]} 5. d3 {[%clk 0:02:45]} 5...
h6 {[%clk 0:02:55.4]} 6. Be2 {[%clk 0:02:45.1]} 6... Nf6 {[%clk 0:02:55.1]} 7.
Be3 {[%clk 0:02:33.5]} 7... Bb6 {[%clk 0:02:51.6]} 8. Qd2 {[%clk 0:02:31.5]}
8... Be6 {[%clk 0:02:51.4]} 9. O-O-O {[%clk 0:02:30.8]} 9... d5 {[%clk
0:02:50.3]} 10. exd5 {[%clk 0:02:26.1]} 10... Nxd5 {[%clk 0:02:51.2]} 11. Nxd5
{[%clk 0:02:21.3]} 11... Qxd5 {[%clk 0:02:44.5]} 12. c4 {[%clk 0:02:21.4]} 12...
Qd6 {[%clk 0:02:37.7]} 13. Nf3 {[%clk 0:02:08.3]} 13... Bd4 {[%clk 0:02:36]} 14.
Nxd4 {[%clk 0:02:03.8]} 14... Nxd4 {[%clk 0:02:34]} 15. Bxd4 {[%clk 0:01:59.6]}
15... Qxd4 {[%clk 0:02:34.9]} 16. Bf3 {[%clk 0:01:59.3]} 16... O-O-O {[%clk
0:02:32.5]} 17. Rhe1 {[%clk 0:01:55.6]} 17... f6 {[%clk 0:02:28.9]} 18. Qb4
{[%clk 0:01:46.4]} 18... Qb6 {[%clk 0:02:23.1]} 19. Qxb6 {[%clk 0:01:44]} 19...
axb6 {[%clk 0:02:24]} 20. d4 {[%clk 0:01:40.1]} 20... Bxc4 {[%clk 0:02:20.1]}
21. b3 {[%clk 0:01:34.8]} 21... Bd5 {[%clk 0:02:07.6]} 22. dxe5 {[%clk
0:01:29.2]} 22... Bxf3 {[%clk 0:02:07.2]} 23. gxf3 {[%clk 0:01:29.5]} 23...
Rxd1+ {[%clk 0:02:06.3]} 24. Kxd1 {[%clk 0:01:30.4]} 24... Rd8+ {[%clk
0:02:05.8]} 25. Kc2 {[%clk 0:01:28.2]} 25... fxe5 {[%clk 0:02:05.9]} 26. Rxe5
{[%clk 0:01:28.1]} 26... Rf8 {[%clk 0:02:05.8]} 27. Re3 {[%clk 0:01:25.7]} 27...
Rf5 {[%clk 0:02:05.2]} 28. Re7 {[%clk 0:01:11.2]} 28... Rxf3 {[%clk 0:02:04.6]}
29. Rxg7 {[%clk 0:01:11.1]} 29... Rxf2+ {[%clk 0:02:04.9]} 30. Kc3 {[%clk
0:01:10.3]} 30... Rf5 {[%clk 0:01:22.8]} 31. Rg8+ {[%clk 0:01:09.5]} 31... Kd7
{[%clk 0:01:22.7]} 32. Rg7+ {[%clk 0:01:09.9]} 32... Kd8 {[%clk 0:01:23.1]} 33.
Rg8+ {[%clk 0:01:09.5]} 33... Kd7 {[%clk 0:01:23.6]} 34. Rg7+ {[%clk 0:01:10]}
34... Kd8 {[%clk 0:01:18.5]} 35. Rg8+ {[%clk 0:01:08.2]} 35... Ke7 {[%clk
0:01:16.7]} 36. Rg7+ {[%clk 0:01:08.2]} 36... Kd6 {[%clk 0:00:58]} 37. Rg6+
{[%clk 0:01:07]} 37... Kc5 {[%clk 0:00:58.5]} 38. Rxh6 {[%clk 0:00:57.1]} 38...
Rf3+ {[%clk 0:00:58.7]} 39. Kb2 {[%clk 0:00:56.9]} 39... Rh3 {[%clk 0:00:56]}
40. Rh8 {[%clk 0:00:51.1]} 40... Kb4 {[%clk 0:00:52.2]} 41. a3+ {[%clk
0:00:49.5]} 41... Kb5 {[%clk 0:00:52.5]} 42. h6 {[%clk 0:00:47.3]} 42... c5
{[%clk 0:00:49.6]} 43. h7 {[%clk 0:00:46.7]} 43... Rh2+ {[%clk 0:00:40.1]} 44.
Kc3 {[%clk 0:00:46.4]} 44... Rh3+ {[%clk 0:00:40]} 45. Kd2 {[%clk 0:00:43.6]}
45... Rh2+ {[%clk 0:00:10.5]} 46. Ke3 {[%clk 0:00:44]} 46... Rh4 {[%clk
0:00:10.8]} 47. Kf3 {[%clk 0:00:38.6]} 47... Rh3+ {[%clk 0:00:11]} 48. Kg4
{[%clk 0:00:37.8]} 48... Rh1 {[%clk 0:00:10.8]} 49. Kf5 {[%clk 0:00:37.8]} 49...
Rh2 {[%clk 0:00:06.3]} 50. Kg6 {[%clk 0:00:35.7]} 50... c4 {[%clk 0:00:06.6]}
51. bxc4+ {[%clk 0:00:35.4]} 51... Kxc4 {[%clk 0:00:06.6]} 52. Rc8+ {[%clk
0:00:35.8]} 52... Kb3 {[%clk 0:00:07.2]} 53. h8=Q {[%clk 0:00:35.9]} 53... Rxh8
{[%clk 0:00:07.1]} 54. Rxh8 {[%clk 0:00:36.2]} 54... Kxa3 {[%clk 0:00:07.8]} 55.
Kf5 {[%clk 0:00:28.3]} 55... b5 {[%clk 0:00:08.1]} 56. Ke4 {[%clk 0:00:29.1]}
56... b4 {[%clk 0:00:08.6]} 57. Kd3 {[%clk 0:00:29.9]} 57... b3 {[%clk
0:00:09.1]} 58. Kc3 {[%clk 0:00:29]} 58... Ka2 {[%clk 0:00:08.1]} 59. Ra8+
{[%clk 0:00:29.6]} 59... Kb1 {[%clk 0:00:08.8]} 60. Kxb3 {[%clk 0:00:29.8]} 1-0

[Event "Late-Titled-Tuesday-Blitz-April-23-2024"]
[Site "Chess.com"]
[Date "2024.04.23"]
[Round "4"]
[White "JoakimVonAnd"]
[Black "Nicolik"]
[Result "1-0"]
[WhiteElo "2695"]
[BlackElo "2511"]
[TimeControl "180+1"]
[EndTime "14:40:59 PDT"]
[Termination "JoakimVonAnd won by resignation"]

1. d4 {[%clk 0:03:00.9]} 1... d5 {[%clk 0:02:55.7]} 2. Nf3 {[%clk 0:03:01]} 2...
Nc6 {[%clk 0:02:55.6]} 3. Bf4 {[%clk 0:03:00.1]} 3... f6 {[%clk 0:02:52.3]} 4.
e3 {[%clk 0:02:58.9]} 4... Bg4 {[%clk 0:02:51.1]} 5. Be2 {[%clk 0:02:59]} 5...
g5 {[%clk 0:02:41.9]} 6. Bg3 {[%clk 0:02:58.4]} 6... h5 {[%clk 0:02:41.8]} 7. h4
{[%clk 0:02:56.6]} 7... Bxf3 {[%clk 0:02:40.2]} 8. Bxf3 {[%clk 0:02:51.5]} 8...
g4 {[%clk 0:02:40.6]} 9. Be2 {[%clk 0:02:51.1]} 9... e5 {[%clk 0:02:38.8]} 10.
O-O {[%clk 0:02:19.6]} 10... Bd6 {[%clk 0:02:26.7]} 11. dxe5 {[%clk 0:02:19.1]}
11... Bxe5 {[%clk 0:02:27.6]} 12. Nc3 {[%clk 0:02:02.9]} 12... Nge7 {[%clk
0:02:24.1]} 13. Bxe5 {[%clk 0:01:58.1]} 13... Nxe5 {[%clk 0:02:24]} 14. Qd4
{[%clk 0:01:45.1]} 14... c6 {[%clk 0:02:15.3]} 15. Rad1 {[%clk 0:01:42.8]} 15...
Qb6 {[%clk 0:02:12.7]} 16. Qf4 {[%clk 0:01:40.4]} 16... Kf7 {[%clk 0:01:50.9]}
17. f3 {[%clk 0:01:31.9]} 17... N7g6 {[%clk 0:01:50.2]} 18. Qd4 {[%clk 0:01:21]}
18... gxf3 {[%clk 0:01:46]} 19. Bxf3 {[%clk 0:01:19.3]} 19... Qxd4 {[%clk
0:01:28.3]} 20. Rxd4 {[%clk 0:01:20.2]} 20... Nxf3+ {[%clk 0:01:22.9]} 21. gxf3
{[%clk 0:01:15.1]} 21... Ne5 {[%clk 0:01:17.8]} 22. Kf2 {[%clk 0:01:14.9]} 22...
Rhg8 {[%clk 0:01:17.4]} 23. Ne2 {[%clk 0:01:13.6]} 23... Rg7 {[%clk 0:01:04.4]}
24. Rg1 {[%clk 0:01:08.6]} 24... Rxg1 {[%clk 0:00:57.7]} 25. Nxg1 {[%clk
0:01:09.5]} 25... Ke6 {[%clk 0:00:53.9]} 26. Ne2 {[%clk 0:01:08.4]} 26... Ng6
{[%clk 0:00:53.6]} 27. Ng3 {[%clk 0:01:03.9]} 27... c5 {[%clk 0:00:46.1]} 28.
Ra4 {[%clk 0:01:01.6]} 28... a5 {[%clk 0:00:46.3]} 29. Nxh5 {[%clk 0:00:57]}
29... b5 {[%clk 0:00:45.3]} 30. Rg4 {[%clk 0:00:53.8]} 30... Ne5 {[%clk
0:00:34.5]} 31. Rg7 {[%clk 0:00:47.6]} 31... b4 {[%clk 0:00:25.7]} 32. Nf4+
{[%clk 0:00:45.4]} 32... Kd6 {[%clk 0:00:26.3]} 33. h5 {[%clk 0:00:43.7]} 33...
Rh8 {[%clk 0:00:25.4]} 34. Ra7 {[%clk 0:00:41.6]} 34... Nc6 {[%clk 0:00:19.9]}
35. Rf7 {[%clk 0:00:41.5]} 35... Rh6 {[%clk 0:00:18.2]} 36. Kg3 {[%clk
0:00:25.2]} 36... a4 {[%clk 0:00:18]} 37. Rb7 {[%clk 0:00:20.6]} 37... c4 {[%clk
0:00:17.4]} 38. Rb5 {[%clk 0:00:20]} 38... b3 {[%clk 0:00:03.8]} 39. axb3 {[%clk
0:00:19.5]} 39... c3 {[%clk 0:00:04.4]} 40. bxa4 {[%clk 0:00:16]} 40... cxb2
{[%clk 0:00:04.2]} 41. Rxb2 {[%clk 0:00:16.9]} 41... Rh8 {[%clk 0:00:04.2]} 42.
Rb5 {[%clk 0:00:16.8]} 42... d4 {[%clk 0:00:04]} 43. exd4 {[%clk 0:00:16.2]}
43... f5 {[%clk 0:00:03]} 44. Rxf5 {[%clk 0:00:15.4]} 44... Rg8+ {[%clk
0:00:03]} 45. Kf2 {[%clk 0:00:14.4]} 45... Ke7 {[%clk 0:00:02.7]} 46. c3 {[%clk
0:00:13.4]} 46... Rb8 {[%clk 0:00:02.9]} 47. Rb5 {[%clk 0:00:13.2]} 47... Ra8
{[%clk 0:00:02.9]} 48. h6 {[%clk 0:00:12]} 48... Rxa4 {[%clk 0:00:02.9]} 49. h7
{[%clk 0:00:12.2]} 49... Ra2+ {[%clk 0:00:03.6]} 50. Kg3 {[%clk 0:00:12.2]}
50... Nxd4 {[%clk 0:00:03.7]} 51. cxd4 {[%clk 0:00:11.9]} 1-0